bitfinex/quotes_BTCUSD_20240731
["timestamp","ask_amount","ask_price","bid_price","bid_amount"]
[1722466942240,0.02569433,65053.0,65047.0,0.0785]
[1722466942399,0.14472675,65052.0,65048.0,0.0002142]
[1722466942596,0.153728,65050.0,65048.0,0.0002142]
[1722466942810,0.14267508,65049.0,65046.0,0.0002142]
[1722466943238,0.153738,65046.0,65041.0,0.153748]
[1722466943441,0.28327508,65048.0,65039.0,0.00083]
[1722466943442,0.02369433,65045.0,65039.0,0.00083]
[1722466943647,0.02369433,65044.0,65039.0,0.308334]
[1722466943883,0.02369433,65044.0,65041.0,0.153747]
[1722466944239,0.02369433,65044.0,65042.0,0.153746]
[1722466944448,0.153735,65047.0,65043.0,0.153744]
[1722466944659,0.14475037,65046.0,65042.0,0.153746]
[1722466945281,0.29848737,65046.0,65042.0,0.153746]
[1722466945610,0.14475037,65045.0,65042.0,0.153746]
[1722466945806,0.45223137,65045.0,65039.0,0.00083]
[1722466946038,0.14875037,65044.0,65039.0,0.00083]
[1722466946399,0.461254,65040.0,65039.0,0.00083]
[1722466946589,1.05650737,65040.0,65039.0,0.00083]
[1722466946793,0.21730956,65040.0,65039.0,0.00083]
[1722466947679,0.21730956,65040.0,65039.0,0.0010442]
[1722466947908,0.37106056,65040.0,65039.0,0.0010442]
[1722466948037,0.37681702,65040.0,65039.0,0.00183]
[1722466949044,0.38181702,65040.0,65039.0,0.00183]
[1722466949667,0.30925783,65040.0,65039.0,0.00183]
[1722466949924,0.38195899,65040.0,65039.0,0.00183]
[1722466950439,0.3819589,65040.0,65039.0,0.00183]
[1722466952881,0.30925783,65040.0,65039.0,0.00183]
[1722466953256,0.38205468,65040.0,65039.0,0.00183]
[1722466953496,0.68955768,65040.0,65039.0,0.00183]
[1722466954211,1.1466124,65040.0,65039.0,0.00183]
[1722466954666,1.2257124,65040.0,65039.0,0.00183]
[1722466954867,1.62068456,65040.0,65039.0,0.00183]
[1722466955717,1.61992917,65040.0,65039.0,0.00183]
[1722466956092,1.6199288,65040.0,65039.0,0.00183]
[1722466956942,1.66583637,65040.0,65039.0,0.00183]
[1722466957139,1.68879015,65040.0,65039.0,0.00183]
[1722466957362,1.6199288,65040.0,65039.0,0.00183]
[1722466957523,1.68880152,65040.0,65039.0,0.00183]
[1722466958278,1.1699258,65040.0,65039.0,0.00183]
[1722466959191,1.09788471,65040.0,65039.0,0.00183]
[1722466959322,1.16969823,65040.0,65039.0,0.00183]
[1722466959527,1.21561624,65040.0,65039.0,0.00183]
[1722466959728,1.14380272,65040.0,65039.0,0.00183]
[1722466959923,1.21561818,65040.0,65039.0,0.00183]
[1722466960326,1.16970017,65040.0,65039.0,0.00183]
[1722466960555,1.21563859,65040.0,65039.0,0.00183]
[1722466961388,1.23857719,65040.0,65039.0,0.00183]
[1722466961623,1.16941254,65040.0,65039.0,0.00183]
[1722466962505,1.16930073,65040.0,65039.0,0.00183]
[1722466962771,1.23822728,65040.0,65039.0,0.00183]
[1722466963634,1.16930073,65040.0,65039.0,0.00183]
[1722466964533,1.23822728,65040.0,65039.0,0.00183]
[1722466964904,0.41210943,65040.0,65039.0,0.00183]
[1722466965107,0.21239089,65040.0,65039.0,0.00183]
[1722466965315,0.21239089,65040.0,65039.0,0.155583]
[1722466965536,0.18694241,65040.0,65039.0,0.155583]
[1722466965764,0.21274105,65040.0,65039.0,0.00183]
[1722466966015,0.36649205,65040.0,65039.0,0.00183]
[1722466966463,0.41246749,65040.0,65039.0,0.0020442]
[1722466966906,0.41246749,65040.0,65039.0,0.00183]
[1722466967639,0.41204147,65040.0,65039.0,0.00183]
[1722466968048,0.36606591,65040.0,65039.0,0.00183]
[1722466968506,0.74253226,65040.0,65039.0,0.00183]
[1722466968939,1.43118659,65040.0,65039.0,0.00183]
[1722466969145,1.60355179,65040.0,65039.0,0.00183]
[1722466969414,1.38802984,65040.0,65039.0,0.00183]
[1722466969674,1.38804308,65040.0,65039.0,0.00183]
[1722466969899,1.38739368,65040.0,65039.0,0.00183]
[1722466970591,1.29540016,65040.0,65039.0,0.00183]
[1722466971253,1.60290316,65040.0,65039.0,0.00183]
[1722466971591,1.717909,65040.0,65039.0,0.00183]
[1722466971792,1.410406,65040.0,65039.0,0.00183]
[1722466971999,1.22515249,65040.0,65039.0,0.00183]
[1722466972197,1.29490103,65040.0,65039.0,0.00183]
[1722466972411,1.40990687,65040.0,65039.0,0.00183]
[1722466973017,1.29269244,65040.0,65039.0,0.00183]
[1722466973217,1.40769828,65040.0,65039.0,0.00183]
[1722466973868,1.29269244,65040.0,65039.0,0.00183]
[1722466974076,1.39637208,65040.0,65039.0,0.00183]
[1722466974626,1.25457208,65040.0,65039.0,0.00183]
[1722466974824,1.25457208,65040.0,65039.0,0.00083]
[1722466974825,1.25078067,65040.0,65039.0,0.00083]
[1722466975024,1.39578768,65040.0,65039.0,0.00183]
[1722466975428,1.08886811,65040.0,65039.0,0.00183]
[1722466975631,0.33999659,65040.0,65039.0,0.00183]
[1722466975830,0.23592413,65040.0,65039.0,0.00183]
[1722466976251,0.23592413,65040.0,65039.0,0.06373]
[1722466976576,0.3509723,65040.0,65039.0,0.06373]
[1722466976732,0.3619723,65040.0,65039.0,0.06473]
[1722466976933,0.24692413,65040.0,65039.0,0.06473]
[1722466977676,0.3619723,65040.0,65039.0,0.06473]
[1722466977882,0.5157233,65040.0,65039.0,0.06473]
[1722466978092,0.5157233,65040.0,65039.0,0.00283]
[1722466978414,0.33079477,65040.0,65039.0,0.00283]
[1722466978586,0.51598229,65040.0,65039.0,0.00283]
[1722466978966,0.51604292,65040.0,65039.0,0.00283]
[1722466979568,0.36229688,65040.0,65039.0,0.00283]
[1722466979770,0.24723156,65040.0,65039.0,0.915497]
[1722466979972,0.24723156,65040.0,65039.0,1.223004]
[1722466980178,0.06333882,65040.0,65039.0,1.223004]
[1722466980376,0.03926992,65040.0,65039.0,1.223004]
[1722466980580,0.02826992,65040.0,65039.0,1.222004]
[1722466980949,0.02526992,65040.0,65039.0,1.222004]
[1722466981154,0.03026992,65040.0,65039.0,1.222004]
[1722466981374,0.02126992,65040.0,65039.0,1.221004]
[1722466981801,0.02126992,65040.0,65039.0,0.60999]
[1722466981998,0.13072706,65040.0,65039.0,0.298483]
[1722466982210,0.13072706,65040.0,65039.0,0.60599]
[1722466982353,0.13072706,65040.0,65039.0,0.913497]
[1722466982354,0.20142265,65040.0,65039.0,0.913497]
[1722466982558,0.20142265,65040.0,65039.0,0.08313]
[1722466982776,0.66267665,65040.0,65039.0,0.00383]
[1722466983057,0.68674282,65040.0,65039.0,0.00383]
[1722466983263,0.37923982,65040.0,65039.0,0.00083]
[1722466983434,0.22648882,65040.0,65039.0,0.00083]
[1722466983695,0.47127724,65040.0,65039.0,0.00083]
[1722466983908,0.4727369,65040.0,65039.0,0.00183]
[1722466984040,0.4807369,65040.0,65039.0,0.00183]
[1722466984623,1.1512572,65040.0,65039.0,0.00183]
[1722466984822,0.39369948,65040.0,65039.0,0.00283]
[1722466986002,0.57047542,65040.0,65039.0,0.00283]
[1722466986174,1.00132812,65040.0,65039.0,0.00283]
[1722466986798,1.46952759,65040.0,65039.0,0.00283]
[1722466987001,1.53292759,65040.0,65039.0,0.00283]
[1722466987234,1.60289207,65040.0,65039.0,0.00283]
[1722466987567,1.86262586,65040.0,65039.0,0.00283]
[1722466988155,1.70704921,65040.0,65039.0,0.00283]
[1722466989028,1.67727016,65040.0,65039.0,0.00283]
[1722466989230,1.67769929,65040.0,65039.0,0.00283]
[1722466989616,1.61429929,65040.0,65039.0,0.00283]
[1722466989993,1.08072459,65040.0,65039.0,0.00283]
[1722466990200,0.23299973,65040.0,65039.0,0.06823]
[1722466990419,0.23299973,65040.0,65039.0,0.221983]
[1722466990934,0.23299973,65040.0,65039.0,0.0684442]
[1722466991170,0.23299973,65040.0,65039.0,0.06823]
[1722466992691,0.23391274,65040.0,65039.0,0.06823]
[1722466992915,0.23391274,65040.0,65039.0,0.0684442]
[1722466993118,0.23391274,65040.0,65039.0,0.06823]
[1722466993315,0.16332888,65040.0,65039.0,0.06823]
[1722466993520,0.23455967,65040.0,65039.0,0.06823]
[1722466994160,0.38831067,65040.0,65039.0,0.06823]
[1722466994388,0.38831067,65040.0,65039.0,0.00283]
[1722466994720,0.23455967,65040.0,65039.0,0.00283]
[1722466995130,0.38831067,65040.0,65039.0,0.00283]
[1722466995334,1.37028105,65040.0,65039.0,0.00283]
[1722466995560,1.21456839,65040.0,65039.0,0.00283]
[1722466995722,1.31930133,65040.0,65039.0,0.00283]
[1722466996347,1.52109211,65040.0,65039.0,0.00283]
[1722466996561,1.62551701,65040.0,65039.0,0.00283]
[1722466996764,1.52109211,65040.0,65039.0,0.00283]
[1722466996967,1.52089959,65040.0,65039.0,0.00283]
[1722466997168,1.62514135,65040.0,65039.0,0.00283]
[1722466998911,1.62533053,65040.0,65039.0,0.00283]
[1722466999103,1.63533053,65040.0,65039.0,0.00283]
[1722466999320,2.13983353,65040.0,65039.0,0.00283]
[1722466999529,2.11983353,65040.0,65039.0,0.00283]
[1722466999815,2.11981932,65040.0,65039.0,0.00283]
[1722467000016,2.75190362,65040.0,65039.0,0.00183]
[1722467000228,2.75492584,65040.0,65039.0,0.00083]
[1722467000384,2.76892584,65040.0,65039.0,0.00183]
[1722467000567,2.79490735,65040.0,65039.0,0.00283]
[1722467000766,1.883388,65039.0,65038.0,0.00083]
[1722467000988,2.84488087,65039.0,65038.0,0.00083]
[1722467001445,3.07186104,65039.0,65038.0,0.00083]
[1722467001579,2.62063545,65039.0,65038.0,0.00083]
[1722467002624,1.721657,65025.0,65024.0,0.00865]
[1722467002838,2.34574853,65025.0,65024.0,0.00865]
[1722467003687,2.35974853,65025.0,65024.0,0.00865]
[1722467003848,2.37374853,65025.0,65024.0,0.00865]
[1722467004255,2.34574853,65025.0,65024.0,0.00865]
[1722467004455,2.35974853,65025.0,65024.0,0.00865]
[1722467004653,2.66732253,65025.0,65024.0,0.00865]
[1722467005054,2.68132253,65025.0,65024.0,0.00865]
[1722467005466,2.84342253,65025.0,65024.0,0.00865]
[1722467006073,2.84575277,65025.0,65024.0,0.00865]
[1722467006300,2.84575576,65025.0,65024.0,0.00865]
[1722467006519,2.8457534,65025.0,65024.0,0.00865]
[1722467006911,2.9952347,65025.0,65024.0,0.00865]
[1722467007520,2.8457534,65025.0,65024.0,0.00865]
[1722467008320,2.8457955,65025.0,65024.0,0.00865]
[1722467008524,2.6206955,65025.0,65024.0,0.00865]
[1722467008724,2.21499693,65025.0,65024.0,0.00865]
[1722467008899,2.21499687,65025.0,65024.0,0.00865]
[1722467009103,2.37846884,65025.0,65024.0,0.00865]
[1722467009308,2.45796864,65025.0,65024.0,0.00865]
[1722467009505,2.59910955,65025.0,65024.0,0.00865]
[1722467009738,2.45796864,65025.0,65024.0,0.00865]
[1722467009912,2.92067645,65025.0,65024.0,0.00865]
[1722467010127,2.76554264,65025.0,65024.0,0.00865]
[1722467010292,2.92063578,65025.0,65024.0,0.00865]
[1722467010497,2.90663578,65025.0,65024.0,0.00865]
[1722467010738,2.92063578,65025.0,65024.0,0.00865]
[1722467010937,2.93463578,65025.0,65024.0,0.00865]
[1722467011351,2.77954264,65025.0,65024.0,0.00865]
[1722467011562,0.03,65023.0,65007.0,0.0002142]
[1722467011767,2.06672508,65008.0,65007.0,0.0002142]
[1722467011980,2.06672508,65008.0,65006.0,0.00866]
[1722467011981,0.799147,65007.0,65006.0,0.00866]
[1722467012176,1.97628396,65007.0,65006.0,0.00866]
[1722467012387,1.97780241,65007.0,65006.0,0.00866]
[1722467012586,1.87157345,65007.0,65006.0,0.00866]
[1722467012811,1.97780289,65007.0,65006.0,0.00866]
[1722467013221,1.99180289,65007.0,65006.0,0.00866]
[1722467013441,0.183846,65000.0,64999.0,9.5e-07]
[1722467013642,0.491608,64990.0,64989.0,0.00866]
[1722467013862,1.89196728,64990.0,64989.0,0.00866]
[1722467014068,1.81786728,64990.0,64989.0,0.00866]
[1722467014317,1.81786728,64990.0,64989.0,0.07376]
[1722467014318,1.36761299,64990.0,64989.0,0.07376]
[1722467014511,1.29549435,64990.0,64989.0,0.07376]
[1722467015057,1.30549435,64990.0,64989.0,0.00866]
[1722467015221,1.50141552,64990.0,64989.0,0.00866]
[1722467015425,1.43255889,64990.0,64989.0,0.00866]
[1722467015629,1.74070242,64990.0,64989.0,0.00866]
[1722467015994,1.66788884,64990.0,64989.0,0.00866]
[1722467016195,1.74070339,64990.0,64989.0,0.00866]
[1722467016516,1.80002913,64990.0,64989.0,0.00866]
[1722467016727,1.78602913,64990.0,64989.0,0.00866]
[1722467016932,1.88602913,64990.0,64989.0,0.00866]
[1722467017163,1.91402913,64990.0,64989.0,0.00866]
[1722467017295,2.06351043,64990.0,64989.0,0.00866]
[1722467017495,1.91736335,64990.0,64989.0,0.00866]
[1722467017712,1.97668909,64990.0,64989.0,0.00866]
[1722467017909,1.96289293,64990.0,64989.0,0.00866]
[1722467018148,2.55913193,64990.0,64989.0,0.00866]
[1722467018374,2.55913193,64990.0,64973.0,0.00866]
[1722467018375,0.346081,64985.0,64973.0,0.00866]
[1722467018579,2.01453793,64985.0,64973.0,0.00866]
[1722467018781,2.62969291,64985.0,64973.0,0.00866]
[1722467018959,2.93745591,64985.0,64973.0,0.00866]
[1722467019764,2.62969291,64985.0,64973.0,0.00866]
[1722467020169,2.56370721,64985.0,64973.0,0.00866]
[1722467020366,2.54970721,64985.0,64973.0,0.00866]
[1722467020571,2.69918851,64985.0,64973.0,0.00866]
[1722467020787,2.56370721,64985.0,64973.0,0.00866]
[1722467021454,2.54970721,64985.0,64973.0,0.00866]
[1722467021676,2.56370721,64985.0,64973.0,0.00866]
[1722467022105,2.47705984,64985.0,64973.0,0.00866]
[1722467022322,2.56420189,64985.0,64973.0,0.00866]
[1722467022654,2.71368319,64985.0,64973.0,0.00866]
[1722467023191,1.884973,64982.0,64973.0,0.00866]
[1722467023463,2.31117889,64982.0,64973.0,0.00866]
[1722467024334,2.32517889,64982.0,64973.0,0.00866]
[1722467024542,2.47466019,64982.0,64973.0,0.00866]
[1722467024711,1.722982,64974.0,64973.0,0.00866]
[1722467024926,2.43438789,64974.0,64973.0,0.00866]
[1722467025332,2.43446979,64974.0,64973.0,0.00866]
[1722467026026,2.44846979,64974.0,64973.0,0.00866]
[1722467026428,2.43446979,64974.0,64973.0,0.00866]
[1722467026650,2.59209725,64974.0,64973.0,0.00866]
[1722467026862,2.14326979,64974.0,64973.0,0.00866]
[1722467027107,1.94704267,64974.0,64973.0,0.00866]
[1722467027513,1.96104267,64974.0,64973.0,0.00866]
[1722467027720,1.88781872,64974.0,64973.0,0.00866]
[1722467028122,1.98504009,64974.0,64973.0,0.00866]
[1722467028332,2.0588098,64974.0,64973.0,0.00866]
[1722467028521,2.07279545,64974.0,64973.0,0.00866]
[1722467029450,2.08679545,64974.0,64973.0,0.00866]
[1722467029659,2.07679545,64974.0,64973.0,0.00866]
[1722467029851,2.09614415,64974.0,64973.0,0.00866]
[1722467030080,2.26562545,64974.0,64973.0,0.00866]
[1722467030268,2.71844045,64974.0,64973.0,0.00866]
[1722467030488,3.18845545,64974.0,64973.0,0.00866]
[1722467030720,1.385424,64962.0,64961.0,0.0005]
[1722467030831,1.93510877,64962.0,64961.0,0.0005]
[1722467031034,1.96510877,64962.0,64961.0,0.0005]
[1722467031241,2.14680877,64962.0,64961.0,0.0005]
[1722467031504,2.45468077,64962.0,64961.0,0.0005]
[1722467031710,2.38086909,64962.0,64961.0,0.0005]
[1722467031930,2.62910744,64962.0,64961.0,0.0005]
[1722467032298,2.64310744,64962.0,64961.0,0.0005]
[1722467032504,2.62910744,64962.0,64961.0,0.0005]
[1722467032706,2.64310744,64962.0,64961.0,0.0005]
[1722467032904,2.65710744,64962.0,64961.0,0.0005]
[1722467033077,2.62910744,64962.0,64961.0,0.0005]
[1722467033278,1.577687,64959.0,64953.0,0.00866]
[1722467033488,2.34238807,64959.0,64953.0,0.00866]
[1722467033690,2.65027407,64959.0,64953.0,0.00866]
[1722467033913,2.95816007,64959.0,64953.0,0.00866]
[1722467034117,3.10178753,64959.0,64953.0,0.00866]
[1722467034838,2.92000937,64959.0,64953.0,0.00866]
[1722467035039,3.10138774,64959.0,64953.0,0.00866]
[1722467035239,3.11538774,64959.0,64953.0,0.00866]
[1722467035506,3.24189937,64959.0,64953.0,0.00866]
[1722467035718,3.44507947,64959.0,64953.0,0.00866]
[1722467036291,2.110805,64954.0,64953.0,0.00866]
[1722467036567,2.57994474,64954.0,64953.0,0.00866]
[1722467036773,2.9364947,64954.0,64953.0,0.00866]
[1722467036950,2.89116896,64954.0,64953.0,0.00866]
[1722467037491,2.5633176,64954.0,64953.0,0.00866]
[1722467037782,2.11735764,64954.0,64953.0,0.00866]
[1722467037977,2.11734905,64954.0,64953.0,0.00866]
[1722467038177,1.80943905,64954.0,64953.0,0.00866]
[1722467038318,1.82343905,64954.0,64953.0,0.00866]
[1722467038530,1.83743905,64954.0,64953.0,0.00866]
[1722467038725,0.769755,64954.0,64953.0,0.00866]
[1722467038926,1.077665,64954.0,64953.0,0.00866]
[1722467039172,1.105665,64954.0,64953.0,0.08456]
[1722467039488,1.091665,64954.0,64953.0,0.15036]
[1722467039685,1.105665,64954.0,64953.0,0.15036]
[1722467039887,0.797755,64954.0,64953.0,0.15036]
[1722467040115,0.475845,64954.0,64953.0,0.15036]
[1722467040289,0.769755,64954.0,64953.0,0.15036]
[1722467040618,1.091665,64954.0,64953.0,0.15036]
[1722467041001,1.399575,64954.0,64953.0,0.15036]
[1722467041218,1.385575,64954.0,64953.0,0.15036]
[1722467041359,1.399575,64954.0,64953.0,0.15036]
[1722467041583,1.46915423,64954.0,64953.0,0.15036]
[1722467041791,1.49068135,64954.0,64953.0,0.15036]
[1722467042184,1.47968135,64954.0,64953.0,0.15036]
[1722467042371,1.091665,64954.0,64953.0,0.15036]
[1722467042572,1.18582548,64954.0,64953.0,0.15036]
[1722467042772,1.17182548,64954.0,64953.0,0.15036]
[1722467043150,1.18555388,64954.0,64953.0,0.15036]
[1722467043531,1.27163998,64954.0,64953.0,0.15036]
[1722467043833,1.7291017,64954.0,64953.0,0.15036]
[1722467044098,1.94020391,64954.0,64953.0,0.08456]
[1722467044306,1.93820391,64954.0,64953.0,0.00866]
[1722467044474,1.95220391,64954.0,64953.0,0.00866]
[1722467044657,1.94020391,64954.0,64953.0,0.00866]
[1722467044853,1.92620391,64954.0,64953.0,0.00866]
[1722467045053,1.94020391,64954.0,64953.0,0.00866]
[1722467045256,1.95420391,64954.0,64953.0,0.00866]
[1722467045417,2.25811391,64954.0,64953.0,0.00866]
[1722467045625,2.48442016,64954.0,64953.0,0.00866]
[1722467046028,3.10401146,64954.0,64953.0,0.00866]
[1722467046233,2.79610146,64954.0,64953.0,0.00866]
[1722467046637,2.74836671,64954.0,64953.0,0.00866]
[1722467046807,3.142697,64954.0,64953.0,0.00866]
[1722467047217,2.834787,64954.0,64953.0,0.00866]
[1722467047442,3.128697,64954.0,64953.0,0.00866]
[1722467047799,3.114697,64954.0,64953.0,0.00866]
[1722467048208,3.142697,64954.0,64953.0,0.00866]
[1722467048412,3.128697,64954.0,64953.0,0.00866]
[1722467048731,3.142697,64954.0,64953.0,0.00866]
[1722467048932,2.834787,64954.0,64953.0,0.00866]
[1722467049282,2.6853057,64954.0,64953.0,0.00866]
[1722467049491,2.81424847,64954.0,64953.0,0.00866]
[1722467049689,2.99221854,64954.0,64953.0,0.00866]
[1722467050139,2.97821854,64954.0,64953.0,0.00866]
[1722467050442,2.67030854,64954.0,64953.0,0.00866]
[1722467050844,2.68430854,64954.0,64953.0,0.00866]
[1722467051072,2.99221854,64954.0,64953.0,0.00866]
[1722467051289,2.68430854,64954.0,64953.0,0.00866]
[1722467051504,2.81280763,64954.0,64953.0,0.00866]
[1722467051783,3.18531763,64954.0,64953.0,1e-06]
[1722467051980,0.491943,64943.0,64942.0,0.0002142]
[1722467052176,1.96135254,64943.0,64942.0,0.0002142]
[1722467052417,2.59431454,64943.0,64942.0,0.0002142]
[1722467052562,2.90227654,64943.0,64942.0,0.0002142]
[1722467052920,2.90118058,64943.0,64942.0,0.0002142]
[1722467053292,2.82983702,64943.0,64942.0,0.0002142]
[1722467053529,3.05066421,64943.0,64942.0,0.0002142]
[1722467053646,3.05066421,64943.0,64941.0,0.0005]
[1722467053647,1.578051,64942.0,64941.0,0.0005]
[1722467053843,2.14548091,64942.0,64941.0,0.0005]
[1722467054270,2.45344791,64942.0,64941.0,0.0005]
[1722467054960,2.29057147,64942.0,64941.0,0.0005]
[1722467055316,2.12354115,64942.0,64941.0,0.0005]
[1722467055542,1.95534115,64942.0,64941.0,0.0005]
[1722467055884,1.63737415,64942.0,64941.0,0.0786]
[1722467056086,1.64660828,64942.0,64941.0,0.0786]
[1722467056724,1.66060828,64942.0,64941.0,0.0786]
[1722467056925,0.19378309,64942.0,64941.0,0.15336412]
[1722467057124,0.65573309,64942.0,64941.0,0.143]
[1722467057323,0.62773309,64942.0,64941.0,0.143]
[1722467057657,0.96370009,64942.0,64941.0,0.143]
[1722467057997,0.94970009,64942.0,64941.0,0.143]
[1722467058199,0.95770009,64942.0,64941.0,0.143]
[1722467058408,0.94970009,64942.0,64941.0,0.143]
[1722467058804,0.96047074,64942.0,64941.0,0.14280273]
[1722467059070,0.93647074,64942.0,64941.0,0.14280273]
[1722467059384,0.94747074,64942.0,64941.0,0.14280273]
[1722467059943,0.93647074,64942.0,64941.0,0.14280273]
[1722467060529,0.95047074,64942.0,64941.0,0.14280273]
[1722467060867,0.98747362,64942.0,64941.0,0.14280273]
[1722467061060,0.99947362,64942.0,64941.0,0.14280273]
[1722467061235,1.45699234,64942.0,64941.0,0.14280273]
[1722467061642,1.48109881,64942.0,64941.0,0.07840273]
[1722467061965,1.88906581,64942.0,64941.0,0.00030273]
[1722467062168,1.87468306,64942.0,64941.0,0.00030273]
[1722467062368,1.88668306,64942.0,64941.0,0.00030273]
[1722467062569,1.82440623,64942.0,64941.0,0.00030273]
[1722467062776,1.8966843,64942.0,64941.0,0.00030273]
[1722467063766,1.8846843,64942.0,64941.0,0.00030273]
[1722467064120,1.99304431,64942.0,64941.0,0.00030273]
[1722467064502,2.06204408,64942.0,64941.0,0.00030273]
[1722467064678,2.07604408,64942.0,64941.0,0.00030273]
[1722467064879,2.1190542,64942.0,64941.0,0.00030273]
[1722467065288,2.02701373,64942.0,64941.0,0.00030273]
[1722467065645,2.51875543,64942.0,64941.0,0.00030273]
[1722467065845,2.09301373,64942.0,64941.0,0.00030273]
[1722467066262,2.40098073,64942.0,64941.0,0.00030273]
[1722467066462,2.38698073,64942.0,64941.0,0.00030273]
[1722467067104,2.07301373,64942.0,64941.0,0.00030273]
[1722467067534,2.09301373,64942.0,64941.0,0.00030273]
[1722467067788,2.07301373,64942.0,64941.0,0.00030273]
[1722467067998,2.09301373,64942.0,64941.0,0.00030273]
[1722467068240,2.53405453,64942.0,64941.0,0.00030273]
[1722467068442,2.7364609,64942.0,64941.0,0.00030273]
[1722467068840,2.89189022,64942.0,64941.0,0.00030273]
[1722467068957,2.87789022,64942.0,64941.0,0.00030273]
[1722467069355,1.578222,64934.0,64933.0,0.0146326]
[1722467069578,2.5367649,64934.0,64933.0,0.0146326]
[1722467069796,2.8447699,64934.0,64933.0,0.0146326]
[1722467070009,3.1471786,64934.0,64933.0,0.0146326]
[1722467070217,3.1471786,64934.0,64924.0,0.00866]
[1722467070218,1.088164,64925.0,64924.0,0.00866]
[1722467070538,2.2252726,64925.0,64924.0,0.00866]
[1722467070759,2.67143605,64925.0,64924.0,0.00866]
[1722467070931,2.5133196,64925.0,64924.0,0.00866]
[1722467071131,2.67143392,64925.0,64924.0,0.00866]
[1722467071479,2.86026716,64925.0,64924.0,0.00866]
[1722467071658,2.91234105,64925.0,64924.0,0.00866]
[1722467071881,2.76285975,64925.0,64924.0,0.00866]
[1722467072086,2.76280264,64925.0,64924.0,0.00866]
[1722467072592,2.79980264,64925.0,64924.0,0.00866]
[1722467072760,2.78980264,64925.0,64924.0,0.00866]
[1722467072966,0.2698,64920.0,64902.0,0.0751]
[1722467073170,1.30254776,64920.0,64902.0,0.0751]
[1722467073472,2.53483176,64920.0,64919.0,1e-08]
[1722467073672,2.8548962,64920.0,64919.0,1e-08]
[1722467073875,2.9943775,64920.0,64919.0,1e-08]
[1722467074203,3.0057175,64920.0,64919.0,1e-08]
[1722467074443,3.0183775,64920.0,64919.0,1e-08]
[1722467074662,3.0193445,64920.0,64919.0,1e-08]
[1722467075208,3.0333445,64920.0,64919.0,1e-08]
[1722467075652,3.0193445,64920.0,64919.0,1e-08]
[1722467075854,3.0193445,64920.0,64901.0,0.0005]
[1722467075855,1.416553,64909.0,64901.0,0.0005]
[1722467076056,2.51028139,64909.0,64901.0,0.0005]
[1722467076259,2.38258772,64909.0,64901.0,0.0005]
[1722467076634,2.48449578,64909.0,64901.0,0.0005]
[1722467076868,2.38258772,64909.0,64901.0,0.0005]
[1722467077069,2.46551838,64909.0,64901.0,0.0005]
[1722467077270,2.42852697,64909.0,64901.0,0.0005]
[1722467077603,2.38258772,64909.0,64901.0,0.0005]
[1722467077730,2.30908879,64909.0,64901.0,0.0005]
[1722467077935,2.38289377,64909.0,64901.0,0.0005]
[1722467078334,2.40472635,64909.0,64901.0,0.0005]
[1722467078588,2.45684824,64909.0,64901.0,0.0005]
[1722467078909,2.42013374,64909.0,64901.0,0.0005]
[1722467079234,2.39601185,64909.0,64901.0,0.0005]
[1722467079631,2.38401841,64909.0,64901.0,0.0005]
[1722467079862,2.35601841,64909.0,64901.0,0.0005]
[1722467080075,2.37001841,64909.0,64901.0,0.0005]
[1722467080430,2.37001841,64909.0,64908.0,0.15216]
[1722467080431,0.48958914,64909.0,64908.0,0.15216]
[1722467080630,0.489951,64909.0,64908.0,0.15216]
[1722467081196,1.106197,64909.0,64908.0,0.15216]
[1722467081397,1.092197,64909.0,64908.0,0.15216]
[1722467081616,1.106197,64909.0,64908.0,0.15216]
[1722467082217,0.770074,64909.0,64908.0,0.15216]
[1722467082417,0.94762572,64909.0,64908.0,0.15216]
[1722467082767,1.24174872,64909.0,64908.0,0.15216]
[1722467082965,1.25574872,64909.0,64908.0,0.15216]
[1722467085295,0.94762572,64909.0,64908.0,0.15216]
[1722467085502,0.63950272,64909.0,64908.0,0.15216]
[1722467085708,0.33589,64909.0,64908.0,0.15216]
[1722467085907,0.33589,64909.0,64908.0,0.306224]
[1722467086351,0.33589,64909.0,64908.0,0.614352]
[1722467086479,0.798074,64909.0,64908.0,0.15216]
[1722467086680,0.784074,64909.0,64908.0,0.15216]
[1722467087134,0.32189,64909.0,64908.0,0.15216]
[1722467087442,0.461951,64909.0,64908.0,0.15216]
[1722467087640,0.472951,64909.0,64908.0,0.15216]
[1722467088024,0.467951,64909.0,64908.0,0.15216]
[1722467088221,0.461951,64909.0,64908.0,0.15216]
[1722467088447,0.778074,64909.0,64908.0,0.15216]
[1722467088911,0.469951,64909.0,64908.0,0.15216]
[1722467089113,0.461951,64909.0,64908.0,0.15216]
[1722467089326,0.776074,64909.0,64908.0,0.15216]
[1722467089557,0.32189,64909.0,64908.0,0.15216]
[1722467089760,0.31389,64909.0,64908.0,0.15216]
[1722467090187,0.32289,64909.0,64908.0,0.15216]
[1722467090388,0.467951,64909.0,64908.0,0.15216]
[1722467090543,1.38723493,64909.0,64908.0,0.15386]
[1722467090752,1.39523946,64909.0,64908.0,0.15386]
[1722467091478,1.38918884,64909.0,64908.0,0.15386]
[1722467091694,1.39818884,64909.0,64908.0,0.15386]
[1722467092129,1.38918884,64909.0,64908.0,0.15386]
[1722467092356,1.39218884,64909.0,64908.0,0.15386]
[1722467092780,1.40318884,64909.0,64908.0,0.15386]
[1722467093000,1.32796637,64909.0,64908.0,0.15386]
[1722467093216,1.41361991,64909.0,64908.0,0.15386]
[1722467093871,1.64708937,64909.0,64908.0,0.00866]
[1722467094116,1.72173939,64909.0,64908.0,0.00866]
[1722467094530,1.85419561,64909.0,64908.0,0.00866]
[1722467094735,1.79184849,64909.0,64908.0,0.00866]
[1722467094941,1.73485996,64909.0,64908.0,0.00866]
[1722467095149,1.71073939,64909.0,64908.0,0.00866]
[1722467095353,1.70273939,64909.0,64908.0,0.00866]
[1722467095559,1.70273939,64909.0,64908.0,0.08846]
[1722467095978,1.68873939,64909.0,64908.0,0.08846]
[1722467096183,1.70273939,64909.0,64908.0,0.08846]
[1722467096407,1.7408581,64909.0,64908.0,0.08846]
[1722467097277,1.74071862,64909.0,64908.0,0.08846]
[1722467097477,1.72671862,64909.0,64908.0,0.08846]
[1722467097682,1.74071862,64909.0,64908.0,0.00866]
[1722467098304,1.84903525,64909.0,64908.0,0.00866]